Cogmind - Beta 16.1 @@@ ROGUE MODE // 2026.03.13 @ 21:21:16 Player: bschuck Result: Destroyed by S-10 Pest with Light Assault Rifle Performance ------------- Evolutions (1) 500 Regions Visited (3) 600 Robots Destroyed (30) 150 Value Destroyed (862) 862 Prototype IDs (0) 0 Alien Tech Used (0) 0 Bonus (0) 0 TOTAL SCORE: 2112 Bonus ------- None Cogmind --------- Core Integrity 0/400 Matter 158/300 Energy 226/265 System Corruption 0% Temperature Cool (0) Movement Core (800) Ox15 Location -9/Mines Parts ------- > --- POWER (1) -------- Improved Ion Engine > --- PROPULSION (2) --- (None) > --- UTILITY (3) ------ High-capacity Storage Unit Visual Processing Unit > --- WEAPON (3) ------- (None) > --- INVENTORY (20) --- Light Ion Engine Light Ion Engine Improved Ion Engine Light Nuclear Core Peak State ------------ > --- POWER ------------ Improved Ion Engine > --- PROPULSION ------- Light Treads Light Treads > --- UTILITY ---------- High-capacity Storage Unit Sensor Array Hardened Light Armor Plating > --- WEAPON ----------- EM Pulse Gun EM Pulse Gun Beam Rifle > --- INVENTORY -------- Ion Engine Light Ion Engine Light Ion Engine Light Ion Engine Improved Ion Engine Improved Ion Engine Reinforced Ion Engine Light Treads Visual Processing Unit Medium Armor Plating Light Assault Rifle Heavy Assault Rifle Heavy Assault Rifle [Rating: 14] Favorites ----------- Power Improved Ion Engine Engine Improved Ion Engine Propulsion Aluminum Leg Treads Light Treads Leg Aluminum Leg Flight Unit Flight Unit Utility High-capacity Storage Unit Device Sensor Array Storage High-capacity Storage Unit Processor Visual Processing Unit Protection Hardened Light Armor Plating Weapon EM Pulse Gun Energy Gun EM Pulse Gun Ballistic Gun Heavy Assault Rifle Launcher Grenade Launcher Special Weapon Mining Laser Build | -11 -10 -9 -9 ------- Run | Yrd Mat Mat Min Slots Evolved 2 | . . 2 . Power . | . . . . Propulsion . | . . . . Utility 1 | . . 1 . Weapon 1 | . . 1 . Parts Attached 39 | 6 9 8 16 Power 10 | 1 2 1 6 Engine 10 | 1 2 1 6 Core . | . . . . Reactor . | . . . . Propulsion 9 | 2 2 1 4 Treads 3 | . 2 1 . Leg 5 | 2 . . 3 Wheel . | . . . . Hover . | . . . . Flight 1 | . . . 1 Utility 9 | 1 2 3 3 Device 2 | . 1 1 . Storage 3 | 1 1 1 . Processor 1 | . . . 1 Hackware . | . . . . Protection 3 | . . 1 2 Artifact . | . . . . Weapon 11 | 2 3 3 3 Energy Gun 5 | 1 1 3 . Energy Cannon . | . . . . Ballistic Gun 3 | 1 1 . 1 Ballistic Cannon . | . . . . Launcher 1 | . 1 . . Special Weapon 2 | . . . 2 Impact Weapon . | . . . . Slashing Weapon . | . . . . Piercing Weapon . | . . . . Special Melee Weapon . | . . . . Unidentified Prototypes . | . . . . Parts Lost 21 | . 7 1 13 Power 5 | . 2 . 3 Propulsion 6 | . 2 . 4 Utility 3 | . 1 . 2 Weapon 7 | . 2 1 4 Highest Loss Streak 7 | . 7 1 5 To Critical Strikes 1 | . . . 1 Average Backups 7 | 4 7 6 9 Power 4 | . . 3 5 Propulsion 1 | 2 1 . 1 Utility . | . . 1 . Weapon 1 | . 4 1 . Tool/Special . | . . . . Unused Backups 8 | . 2 3 3 Power 2 | . . . 2 Propulsion 3 | . 2 . 1 Utility 1 | . . 1 . Weapon 2 | . . 2 . Tool/Special . | . . . . Average Slot Usage (%) 83 | . 81 93 78 Engine 10 | . 11 10 10 Treads 9 | . 4 22 4 Leg 10 | . 21 . 13 Device 4 | . 2 10 1 Storage 11 | . 14 11 11 Processor 5 | . . . 9 Protection 7 | . . 9 8 Energy Gun 14 | . 13 25 8 Ballistic Gun 6 | . 12 4 5 Special Weapon 2 | . . . 5 Peak Build Rating 14 | 6 7 14 14 Average Rating 10 | 3 5 11 10 On Entrance 5 | . 6 4 13 Avg Prop Armor Cover (%) 17 | . . . 17 Naked Turns . | . . . . Heaviest Build 60 | 11 19 60 58 Greatest Support 40 | 20 40 40 40 Greatest Overweight (x) 18 | 3 4 1 18 Average Overweight (x) 1 | . . . 3 Largest Inventory Capacity 20 | 8 10 20 20 Average Capacity 16 | 7 9 14 20 Most Carried 17 | 7 9 16 17 Average Carried 8 | 4 7 6 9 Final Capacity 20 | 8 10 20 20 Final Carried 13 | 6 3 13 4 Class Distribution -------------------- 52% | Mutant 23% | Scavenger-Tank 16% | Tank 3% | Skirmisher 3% | Scavenger-Mutant Dominant Class ---------------- Mutant | -10/Materials Tank | -9/Materials Mutant | -9/Mines Resources | -11 -10 -9 -9 ----------- Run | Yrd Mat Mat Min Matter Collected 633 | 237 153 138 105 Remotely 10 | . 10 . . Salvage Created 1006 | . 353 355 298 Parts 58 | . 24 20 14 Haulers Intercepted 1 | . 1 . . Recyclers Shooed 2 | . 2 . . Parts Field Recycled . | . . . . Retrieved Matter . | . . . . Parts Self-Destructed . | . . . . Prevented . | . . . . Parts Restored . | . . . . Kills | -11 -10 -9 -9 ------- Run | Yrd Mat Mat Min Combat Hostiles Destroyed 24 | . 8 8 8 Guns 19 | . 6 7 6 AOE 4 | . 2 1 1 Classes Destroyed 8 | . 4 4 . Builder 2 | . 1 1 . Tunneler 1 | . 1 . . Hauler 1 | . 1 . . Watcher 2 | . . 2 . Swarmer 5 | . . 3 2 Grunt 17 | . 8 3 6 Brawler 1 | . . 1 . Sentry 1 | . . 1 . Best Kill Streak 5 | . 5 3 3 Combat Bots Only 3 | . 3 3 3 Max Kills in Single Turn 3 | . 3 2 1 Gunslinging . | . . . . Exploded 1 | . 1 1 1 Melee . | . . . . Uniques/NPCs Destroyed . | . . . . Combat | -11 -10 -9 -9 -------- Run | Yrd Mat Mat Min Hostile Shots Fired 404 | . 113 25 266 Missed 108 | . 31 4 73 Hits 296 | . 82 21 193 Projectile 296 | . 82 21 193 Critical Strikes 2 | . . . 2 Damage Taken 3094 | . 1062 279 1753 Core 630 | . 230 15 385 Absorbed by Shields . | . . . . Core Remaining (%) 54 | 100 8 . . Volleys Fired 109 | . 37 22 50 Largest 3 | . 2 3 3 Hottest 136 | . 60 120 136 Shots Fired 185 | . 71 54 60 Gun 183 | . 69 54 60 Cannon . | . . . . Launcher 2 | . 2 . . Special . | . . . . Kinetic 86 | . 37 5 44 Thermal 33 | . 28 . 5 Explosive 2 | . 2 . . Electromagnetic 64 | . 4 49 11 Robot Hit Streak 16 | . 8 16 3 Robot Miss Streak 7 | . 7 5 6 Penetration Max . | . . . . Secondary Targets 4 | . . 3 1 Max Gunslinging Chain 1 | . . 1 1 Shots Hit Robots 94 | . 37 29 28 Core Hits 48 | . 23 15 10 Critical Kills . | . . . . Critical Parts Destroyed . | . . . . Critical Strikes 1 | . . 1 . Corrupt 1 | . . 1 . Melee Attacks . | . . . . Impact . | . . . . Slashing . | . . . . Piercing . | . . . . Sneak Attacks . | . . . . Combat Hostiles . | . . . . Follow-up Attacks . | . . . . Damage Inflicted 1909 | . 927 453 529 Guns 1262 | . 462 371 429 Cannons . | . . . . Explosions 647 | . 465 82 100 Melee . | . . . . Ramming . | . . . . Kinetic 565 | . 246 39 280 Thermal 388 | . 178 82 128 Explosive 465 | . 465 . . Electromagnetic 491 | . 38 332 121 Impact . | . . . . Slashing . | . . . . Piercing . | . . . . Highest Corruption . | . . . . Average Corruption . | . . . . Corruption Purged . | . . . . Corruption Blocked . | . . . . Overload Shots . | . . . . Overflow Damage . | . . . . Projectiles . | . . . . Explosions . | . . . . Melee . | . . . . Knockbacks . | . . . . Impact . | . . . . Kinetic . | . . . . Secondary . | . . . . Self-Inflicted Damage 120 | . 42 36 42 Shots 4 | . 2 1 1 Rammed . | . . . . Targets Rammed . | . . . . Kicked . | . . . . Crushed . | . . . . Highest Temperature 505 | . 147 246 505 Average Temperature 101 | . 42 95 249 Received Heat Transfer 873 | . 564 72 237 Effects 8 | . . . 8 Shutdowns 1 | . . . 1 Interference 3 | . . . 3 Damage (minor) 1 | . . . 1 Damage (major) 3 | . . . 3 Siege Activations . | . . . . Martial Activations . | . . . . Shielding Activations . | . . . . Robots Disrupted . | . . . . Combat Hostiles . | . . . . Robots Corrupted 1 | . . . 1 Combat Hostiles 1 | . . . 1 Parts Fried 3 | . . 2 1 Impact Corruptions . | . . . . Robots Melted . | . . . . Combat Hostiles . | . . . . Parts Melted . | . . . . Heat Transferred 674 | . 400 100 174 Parts Sabotaged . | . . . . Parts Stolen . | . . . . Parts Stripped . | . . . . Power Chain Reactions 3 | . . 2 1 Alert | -11 -10 -9 -9 ------- Run | Yrd Mat Mat Min Maximum Alert Level . | . . . . Low Security (%) 100 | 100 100 100 100 Level 1 . | . . . . Level 2 . | . . . . Level 3 . | . . . . Level 4 . | . . . . Level 5 . | . . . . High Security . | . . . . Max Security . | . . . . Peak Influence 167 | . 167 158 113 Initial 61 | . . 61 48 Average 39 | . 88 58 18 Influence Increases 778 | . 307 276 195 Destroy 0b10 Robot/C 480 | . 160 160 160 Destroy 0b10 Robot/NC 30 | . 15 15 . Destroy Leader 106 | . 42 34 30 Successful Hack 4 | . 4 . . Disable Machine 75 | . 45 30 . Destroy Structure 53 | . 41 7 5 Lose Combat Pursuer 30 | . . 30 . Influence Decreases 778 | . 160 297 321 Entered New Map 164 | . . 86 78 Time Decay 464 | . 90 201 173 Lost Part 150 | . 70 10 70 Squads Dispatched 5 | . 3 2 . Investigation 1 | . . 1 . Extermination . | . . . . Reinforcement 4 | . 3 1 . Assault . | . . . . Garrison . | . . . . Intercept . | . . . . Searches Triggered . | . . . . Construction Impeded . | . . . . Haulers Reinforced . | . . . . Active Scanning Responses . | . . . . Cargo Convoy Interrupts . | . . . . Stealth | -11 -10 -9 -9 --------- Run | Yrd Mat Mat Min Distress Signals 4 | . 3 1 . Communications Jammed . | . . . . Distress Signals . | . . . . Times Spotted 42 | . 21 13 8 Peak Tracking Total 9 | . 9 4 3 Tactical Retreats 2 | . . 2 . Traps | -11 -10 -9 -9 ------- Run | Yrd Mat Mat Min Traps Triggered 1 | . . 1 . Indirectly . | . . . . Trap Hack Attempts . | . . . . Triggered . | . . . . Disarmed . | . . . . Reprogrammed . | . . . . Reused . | . . . . Traps Extracted . | . . . . Installed . | . . . . Triggered . | . . . . Machines | -11 -10 -9 -9 ---------- Run | Yrd Mat Mat Min Machines Disabled 5 | . 3 2 . Max in Single Turn 1 | . 1 1 . Machines Repaired . | . . . . Machines Dismantled . | . . . . Machines Sabotaged . | . . . . Overloaded Fab Kills . | . . . . Hacking | -11 -10 -9 -9 --------- Run | Yrd Mat Mat Min Machines Accessed 1 | . 1 . . Terminals 1 | . 1 . . Fabricators . | . . . . Repair Stations . | . . . . Recycling Units . | . . . . Scanalyzers . | . . . . Garrison Access . | . . . . Total Hacks 4 | . 4 . . Successful 1 | . 1 . . Failed 3 | . 3 . . Catastrophic 1 | . 1 . . Database Lockouts . | . . . . Manual . | . . . . Terminals 4 | . 4 . . Fabricators . | . . . . Repair Stations . | . . . . Recycling Units . | . . . . Scanalyzers . | . . . . Garrison Access . | . . . . Terminal Hacks 1 | . 1 . . Dispatch Records 1 | . 1 . . Fabricator Hacks . | . . . . Repair Station Hacks . | . . . . Recycling Unit Hacks . | . . . . Scanalyzer . | . . . . Garrison Access Hacks . | . . . . Unauthorized Hacks . | . . . . Terminals . | . . . . Fabricators . | . . . . Repair Stations . | . . . . Recycling Units . | . . . . Scanalyzers . | . . . . Garrison Access . | . . . . Data Cores Recovered . | . . . . Used . | . . . . Hacking Detections 1 | . 1 . . Full Trace Events . | . . . . Feedback Events . | . . . . Feedback Blocked . | . . . . Robot Schematics Acquired . | . . . . Robots Built . | . . . . Authchips . | . . . . Time . | . . . . Total Robot Build Rating . | . . . . Part Schematics Acquired . | . . . . Parts Built . | . . . . Authchips . | . . . . Time . | . . . . Total Part Build Rating . | . . . . Part Studies Acquired . | . . . . Parts Repaired . | . . . . Time . | . . . . Parts Recycled . | . . . . Recycled Matter . | . . . . Retrieved Matter . | . . . . Retrieved Components . | . . . . Parts Scanalyzed . | . . . . Part Schematics Acquired . | . . . . Parts Damaged . | . . . . Bothacking | -11 -10 -9 -9 ------------ Run | Yrd Mat Mat Min Used RIF Installer . | . . . . Robots Hacked . | . . . . Non-combat . | . . . . Combat . | . . . . Robot Hacks Applied . | . . . . Relay Couplers Released . | . . . . Fabnet Peak Effective % . | . . . . Robots Rewired . | . . . . Allies Hacked . | . . . . Hacks Repelled . | . . . . Allies | -11 -10 -9 -9 -------- Run | Yrd Mat Mat Min Total Allies . | . . . . Largest Group . | . . . . Highest-Rated Group . | . . . . Highest-Rated Ally . | . . . . Total Orders . | . . . . Ally Attacks . | . . . . Total Damage . | . . . . Kills . | . . . . Allies Corrupted . | . . . . Allies Melted . | . . . . Intel | -11 -10 -9 -9 ------- Run | Yrd Mat Mat Min Active Infowar (turns) 1268 | . . 468 800 Optics 784 | . . . 784 Sensors 484 | . . 468 16 Robot Analysis Total . | . . . . Derelict Logs Recovered . | . . . . Drone Launches . | . . . . Drone Recoveries . | . . . . Exploration | -11 -10 -9 -9 ------------- Run | Yrd Mat Mat Min Turns Passed 1730 | 55 254 503 918 Spaces Moved 585 | 32 102 213 238 Core 34 | 16 1 . 17 Treads 269 | . 13 213 43 Legs 276 | 16 88 . 172 Wheels . | . . . . Hover . | . . . . Flight 6 | . . . 6 Fastest Speed 50 | 50 120 160 240 Average Speed 231 | 119 126 187 330 Slowest Speed 1090 | 200 250 240 1090 Overloaded Moves . | . . . . Propulsion Burnouts . | . . . . Robots Hopped . | . . . . Potential Cave-ins . | . . . . Cave-ins Triggered . | . . . . Exploration Rate (%) 23 | 3 28 18 46 Regions Visited 3 Branch Regions 1 Pre-discovered Areas . | . . . . Known Exits Taken . | . . . . Unknown Exits Taken 3 | 1 1 1 . Scrap Searched 1 | . . . 1 Spaces Dug . | . . . . Terrain Destroyed 59 | . 48 6 5 Melee . | . . . . Projectile . | . . . . AOE 59 | . 48 6 5 Terrain Rammed . | . . . . Walls Destroyed . | . . . . Machines Disabled . | . . . . Actions | -11 -10 -9 -9 --------- Run | Yrd Mat Mat Min Total 802 | 49 161 272 320 Wait . | . . . . Move 583 | 31 101 213 238 Hop . | . . . . Pick Up 48 | 12 8 22 6 Fast Attach . | . . . . Attach 38 | 6 8 9 15 Detach 1 | . . . 1 Swap 4 | . 1 1 2 Drop 19 | . 6 5 8 Fire 109 | . 37 22 50 Melee . | . . . . Ram . | . . . . Kick . | . . . . Crush . | . . . . Escape Stasis . | . . . . Rewire . | . . . . Trap . | . . . . Miscellaneous . | . . . . Route ------- -11/Scrapyard -10/Materials -9/Materials -9/Mines History --------- Turn | Location | Event 27 | -11/Scrapyard | Discovered new exit (range 16) 56 | -11/Scrapyard | Entered Materials 227 | -10/Materials | Discovered new exit (range 11) 270 | -10/Materials | Core integrity fell below 50% 280 | -10/Materials | Core integrity fell below 20% 300 | -10/Materials | Build established: Mutant 310 | -10/Materials | Entered another Materials area 310 | -9/Materials | Evolved 2 slots: Utility x1, Weapon x1 326 | -9/Materials | Lost 7 parts (2p2n1u2w) 761 | -9/Materials | Discovered new exit (range 6) 813 | -9/Materials | Entered Mines 865 | -9/Mines | Assembled infested the area 870 | -9/Mines | Assisted by a Guerilla fighting off Assembled 1234 | -9/Mines | Build established: Scavenger-Tank 1464 | -9/Mines | Lost 5 parts (1p1n1u2w) 1625 | -9/Mines | Core integrity fell below 50% 1706 | -9/Mines | Core integrity fell below 20% 1731 | -9/Mines | Destroyed by S-10 Pest with Light Assault Rifle Last Messages --------------- Mining Laser destroyed. Med. Armor Plating destroyed. S-10 Pest destroyed. Lgt. Ion Engine destroyed. Aluminum Leg destroyed. S-10 Pest destroyed. Critical hit (Destroy). Hvy. Assault Rifle destroyed. Dropped Aluminum Leg. Ion Engine destroyed. Lgt. Treads destroyed. Drag warning: You are moving via airborne propulsion while non-airborne propulsion attached, which reduces your speed. See your non-airborne propulsion's Drag stat. U-05 Engineer builds a Door. Aluminum Leg destroyed. Flight Unit destroyed. Hrd. Light Armor Plating destroyed. Rnf. Ion Engine destroyed. Map ----- +----------------------------------------------------+ | ?????????????????????????????????????? | | ?????????????????????????????????????? | | ?????????????????????????????????????? | | ?????????????????????????????????????? | | ?????????######??????????????????????? | | ?????????# ##?????????????????????? | | ?????????# ??????????##??????????? | | ?????????# #?????????# #??????????? | | ?????????# #????????? #??????????? | | ?????##### #???????## #???????????? | | ?##### ## ##??????## #???????????? | | ?# ######## #???????????? | | ?# = %* ## #??????####??? | | ?# %## =%== ##???## ##?? | | ?#* #### ### $ ##### ##? | | ?# #??# #### #? | | ?# #### ### #? | | ##[ %= ### #?? | | ####### ######?## #### ##?? | | ## #?????# ##???????####??## ###??? | | ?# #?????# #???????????????# #????? | | ?# #?????# ???????????????# #????? | | ?# #????? #????????###???# ##???? | | ## #????# ???????## ##### ##??? | | #????## #??????# ## #??? | | #?????### #??????## @ s #??? | | ## ##???????? #???????## ##??? | | ?# #????????? #????????##### ##???? | | ?# #????????? #????????????#####????? | | ?# #????????? ?????????????????????? | | ?# #?????????## ?????????????????????? | | ?# #??????????? ?????????????????????? | | ?# #???????????##????????????????????? | | ?# #?????????????????????????????????? | | ?#$??????????????????????????????????? | | ?# ??????????????????????????????????? | | ??#??????????????????????????????????? | | ?????????????????????????????????????? | | ?????????????????????????????????????? | | ?????????????????????????????????????? | | ?????????????????????????????????????? | | ?????????????????????????????????????? | | ?????????????????????????????????????? | | ?????????????????????????????????????? | | ?????????????????????????????????????? | | ?????????????????????????????????????? | | ?????????????????????????????????????? | | ?????????????????????????????????????? | | ?????????????????????????????????????? | | ?????????????????????????????????????? | +----------------------------------------------------+ Best States ------------- Heat Dissipation 28 Energy Generation 12 Energy Capacity 265 Matter Stores 300 Matter Capacity 300 Sight Range 18 Robot Scan Range 14 Terrain Scan Density 10 Armor Coverage 225 Evasion (%) 55 Recoil Reduction 2 Item Schematics ----------------- None Robot Schematics ------------------ None Fabricated ------------ Nothing Repaired ---------- Nothing Studied --------- None Alien Tech Used ----------------- None Achievements -------------- Ghost 'Em I Have A Map? Challenges ------------ None Game ------ Seed AerolevGravmagDirector Manual? 0 Play Time 00:27:16 Cumulative 29.2 hours Start 2026.03.13 @ 20:55:19 End 2026.03.13 @ 21:21:16 Sessions 1 Manual Loads 0 Difficulty Rogue Special Mode None Game No. 45 Rogue 34 Adventurer 0 Explorer 11 Win Type - Total 0 Types 0/0/0/0/0/0/0/0/0/0 Lore% 5 Gallery% 23 Achievement% 14 Wizard Run 0 Options --------- Layout 1 ASCII 0 Keyboard 0 Movement Mouse Keybinds 0 Fullscreen 1 Font 16/SmallcapsGlow Map View 50x40 Zoom Use 0% Tactical HUD 0 Map Filters NONE Filters NONE Steam SD RUN: e9e4b9dc-cd7f-47c1-a81a-9d350b7753fd